bitfinex-derivatives/quotes_BTCF0:USTF0_20251125
["timestamp","ask_amount","ask_price","bid_price","bid_amount"]
[1764091991708,0.3722016,87757.0,87756.0,0.09488]
[1764091991896,0.3608,87757.0,87756.0,0.09488]
[1764091992101,0.45696,87757.0,87756.0,0.09488]
[1764091993506,0.09616,87751.0,87750.0,0.40621]
[1764091993713,0.3732016,87757.0,87756.0,0.09488]
[1764091994098,0.40863,87757.0,87756.0,0.09488]
[1764091995502,0.09616,87751.0,87750.0,0.45568]
[1764091995707,0.04683,87751.0,87750.0,0.45568]
[1764091996502,0.09616,87751.0,87750.0,0.45568]
[1764091996708,0.0824672,87751.0,87750.0,0.45568]
[1764091997218,0.04683,87756.0,87750.0,0.37898]
[1764091997408,0.0582317,87756.0,87755.0,0.09488]
[1764091997607,0.04683,87756.0,87755.0,0.09488]
[1764091997800,0.3608,87757.0,87756.0,0.1062817]
[1764091998015,0.0071089,87760.0,87759.0,0.1062813]
[1764091998207,0.0071089,87760.0,87759.0,0.4834213]
[1764091998906,0.0071089,87760.0,87759.0,0.45568]
[1764091999712,0.0071089,87760.0,87759.0,0.47712]
[1764092002320,0.0185101,87760.0,87759.0,0.47712]
[1764092002516,0.0071089,87760.0,87759.0,0.47712]
[1764092005411,0.0113982,87783.0,87782.0,0.09488]
[1764092005615,0.09616,87781.0,87780.0,0.3608]
[1764092006216,0.09616,87781.0,87780.0,0.45568]
[1764092006721,0.04683,87784.0,87783.0,0.1062782]
[1764092006920,0.0113978,87787.0,87786.0,0.1062778]
[1764092007228,0.1075578,87787.0,87786.0,0.09488]
[1764092008924,0.1085578,87787.0,87786.0,0.09488]
[1764092009322,0.1095578,87787.0,87786.0,0.09488]
[1764092009920,0.09816,87787.0,87786.0,0.09488]
[1764092010119,0.002,87787.0,87786.0,0.09488]
[1764092010725,0.04883,87787.0,87786.0,0.09488]
[1764092011420,0.002,87787.0,87786.0,0.09488]
[1764092011611,0.09816,87787.0,87786.0,0.09488]
[1764092011816,0.002,87787.0,87786.0,0.09488]
[1764092013916,0.04883,87787.0,87786.0,0.09488]
[1764092014117,0.09816,87787.0,87786.0,0.09488]
[1764092014518,0.002,87787.0,87786.0,0.09488]
[1764092016216,0.1095577,87787.0,87786.0,0.09488]
[1764092017126,0.09587103,87787.0,87786.0,0.09488]
[1764092017825,0.10726873,87787.0,87786.0,0.09488]
[1764092018922,0.04654103,87787.0,87786.0,0.09488]
[1764092019230,0.0582272,87791.0,87790.0,0.09488]
[1764092019618,0.04683,87791.0,87790.0,0.1062773]
[1764092019921,0.04683,87791.0,87784.0,0.372198]
[1764092019922,0.12344,87808.0,87807.0,0.09488]
[1764092020127,0.1075558,87801.0,87800.0,0.09488]
[1764092021121,0.09616,87801.0,87800.0,0.09488]
[1764092021322,0.0113955,87804.0,87803.0,0.08934]
[1764092021526,0.1002555,87804.0,87803.0,0.08934]
[1764092023122,0.1012555,87804.0,87803.0,0.04484]
[1764092023822,0.1012555,87804.0,87803.0,0.08934]
[1764092024024,0.04548,87804.0,87803.0,0.08934]
[1764092024328,0.08986,87804.0,87803.0,0.08934]
[1764092025732,0.08986,87804.0,87803.0,0.04484]
[1764092025934,0.128216,87800.0,87799.0,0.04501091]
[1764092026229,0.128216,87800.0,87799.0,0.00017091]
[1764092027238,0.11452927,87800.0,87799.0,0.00017091]
[1764092027530,0.12592527,87800.0,87799.0,0.00017091]
[1764092028629,0.12692527,87800.0,87799.0,0.00017091]
[1764092029024,0.12592527,87800.0,87799.0,0.00017091]
[1764092029227,0.11552927,87800.0,87799.0,0.08951091]
[1764092029533,0.08756927,87800.0,87799.0,0.08951091]
[1764092029924,0.11552927,87800.0,87799.0,0.08951091]
[1764092030127,0.11452927,87800.0,87799.0,0.08951091]
[1764092031537,0.08656927,87800.0,87799.0,0.08951091]
[1764092031832,0.11452927,87800.0,87799.0,0.08951091]
[1764092032629,0.44966,87810.0,87809.0,0.08934]
[1764092033026,0.44966,87810.0,87809.0,0.04484]
[1764092033223,0.08886,87810.0,87809.0,0.0562348]
[1764092033423,0.00774713,87816.0,87809.0,0.1007348]
[1764092033623,0.00757613,87816.0,87815.0,0.461534]
[1764092034837,0.00757613,87816.0,87815.0,0.641534]
[1764092035335,0.00757613,87816.0,87815.0,1.041534]
[1764092036825,0.00757613,87816.0,87815.0,1.041494]
[1764092037139,0.0558723,87829.0,87827.0,0.0113924]
[1764092037436,0.1002523,87829.0,87828.0,0.3608]
[1764092037635,0.1002523,87829.0,87819.0,0.0001708]
[1764092037636,0.1002534,87820.0,87819.0,0.0001708]
[1764092038335,0.1002534,87820.0,87819.0,0.0450108]
[1764092038838,0.1002534,87820.0,87819.0,0.1801708]
[1764092039034,0.1002534,87820.0,87819.0,0.0001708]
[1764092039235,0.08886,87820.0,87819.0,0.0978243]
[1764092039441,0.08886,87820.0,87819.0,0.0864308]
[1764092040044,0.08886,87820.0,87819.0,0.0001708]
[1764092041435,0.08886,87820.0,87819.0,0.0817308]
[1764092041644,0.3608,87826.0,87825.0,0.08156]
[1764092041645,0.08369,87826.0,87825.0,0.08156]
[1764092041945,0.08369,87824.0,87823.0,0.372193]
[1764092042153,0.08369,87824.0,87823.0,0.453753]
[1764092042353,0.0427,87832.0,87831.0,0.0929519]
[1764092042552,0.0950811,87838.0,87837.0,0.08156]
[1764092042952,0.0950811,87838.0,87837.0,0.0929512]
[1764092042953,0.08369,87838.0,87837.0,0.0929512]
[1764092043451,0.0113872,87868.0,87867.0,0.04142]
[1764092043651,0.0113872,87868.0,87867.0,0.26156]
[1764092043847,0.0113868,87871.0,87870.0,0.08156]
[1764092044047,0.06856,87880.0,87879.0,0.08156]
[1764092044260,0.10955,87880.0,87879.0,0.08156]
[1764092044448,0.0427,87880.0,87879.0,0.08156]
[1764092044657,0.0427,87880.0,87876.0,0.3608]
[1764092044658,0.08369,87877.0,87876.0,0.3608]
[1764092044850,0.08369,87877.0,87876.0,0.53952]
[1764092045150,0.08369,87877.0,87876.0,0.44236]
[1764092045358,0.08369,87877.0,87876.0,0.62244]
[1764092045550,0.0427,87877.0,87876.0,0.62244]
[1764092045756,0.0540857,87879.0,87878.0,0.08156]
[1764092046159,0.0427,87879.0,87878.0,0.08156]
[1764092047248,0.0427,87879.0,87878.0,0.26164]
[1764092047558,0.10955,87879.0,87878.0,0.26164]
[1764092047758,0.11055,87879.0,87878.0,0.2616]
[1764092047957,0.11055,87879.0,87878.0,0.08156]
[1764092048257,0.08369,87877.0,87876.0,0.3608]
[1764092048558,0.0540868,87871.0,87870.0,0.08156]
[1764092048854,0.0427,87871.0,87870.0,0.08156]
[1764092049051,0.08369,87871.0,87870.0,0.2616]
[1764092049456,0.08369,87871.0,87870.0,0.04014]
[1764092049652,0.08369,87871.0,87870.0,0.22018]
[1764092049853,0.08369,87868.0,87867.0,0.3608]
[1764092050059,0.08369,87868.0,87867.0,0.52344]
[1764092050356,0.08369,87868.0,87867.0,0.3608]
[1764092050558,0.0427,87860.0,87859.0,0.6225708]
[1764092050858,0.0113878,87863.0,87859.0,0.5410108]
[1764092051059,0.0950778,87863.0,87862.0,0.08156]
[1764092051763,0.1182182,87860.0,87859.0,0.3609708]
[1764092052063,0.1182182,87860.0,87859.0,0.3619708]
[1764092052960,0.1182182,87860.0,87859.0,0.0011708]
[1764092052961,0.4790182,87860.0,87859.0,0.0011708]
[1764092053357,0.1182182,87860.0,87859.0,0.0011708]
[1764092053949,0.1182182,87860.0,87859.0,0.0424408]
[1764092054153,0.1182182,87860.0,87859.0,0.0849308]
[1764092054459,0.10454197,87860.0,87859.0,0.0001708]
[1764092055163,0.11593017,87860.0,87859.0,0.0011708]
[1764092055754,0.11593017,87860.0,87859.0,0.0424408]
[1764092055950,0.11593017,87860.0,87859.0,0.0839308]
[1764092056353,0.10454197,87860.0,87859.0,0.0839308]
[1764092056960,0.10454197,87860.0,87859.0,0.0001708]
[1764092057358,0.10454197,87860.0,87859.0,0.0839308]
[1764092057760,0.10454197,87860.0,87859.0,0.0001708]
[1764092060063,0.3608,87869.0,87860.0,0.08376]
[1764092060271,0.44347,87869.0,87868.0,0.08376]
[1764092060568,0.4548561,87877.0,87876.0,0.08376]
[1764092060762,0.44347,87877.0,87876.0,0.08376]
[1764092061160,0.40348,87877.0,87876.0,0.08376]
[1764092061359,0.44347,87877.0,87876.0,0.08376]
[1764092061870,0.3608,87877.0,87876.0,0.08376]
[1764092062060,0.3608,87888.0,87880.0,0.0113855]
[1764092062369,0.10681,87880.0,87879.0,0.08376]
[1764092062661,0.08267,87874.0,87873.0,0.40207]
[1764092062869,0.04268,87880.0,87879.0,0.08376]
[1764092064260,0.001,87888.0,87880.0,0.0113856]
[1764092064461,0.05882632,87885.0,87884.0,0.40207]
[1764092064766,0.08267,87890.0,87889.0,0.08376]
[1764092064967,0.10681,87890.0,87889.0,0.08376]
[1764092065362,0.04268,87885.0,87884.0,0.44456]
[1764092065767,0.002,87888.0,87887.0,0.08376]
[1764092065962,0.08467,87888.0,87887.0,0.08376]
[1764092066864,0.001,87888.0,87887.0,0.08376]
[1764092067065,0.001,87890.0,87889.0,0.08376]
[1764092067266,0.002,87890.0,87889.0,0.08376]
[1764092067466,0.001,87890.0,87889.0,0.08376]
[1764092068066,0.08267,87908.0,87907.0,0.04127]
[1764092068259,0.08267,87908.0,87907.0,0.3608]
[1764092069270,0.08267,87928.0,87927.0,0.08376]
[1764092069770,0.08267,87928.0,87927.0,0.04127]
[1764092069965,0.08267,87920.0,87919.0,0.0839306]
[1764092070364,0.08267,87929.0,87928.0,0.08376]
[1764092070874,0.0940503,87921.0,87920.0,0.08376]
[1764092071064,0.0940503,87921.0,87920.0,0.04127]
[1764092071265,0.0940503,87921.0,87920.0,0.08376]
[1764092071266,0.08267,87921.0,87920.0,0.08376]
[1764092071464,0.0781992,87930.0,87925.0,0.04249]
[1764092071667,0.04268,87926.0,87925.0,0.08376]
[1764092071966,0.04268,87920.0,87919.0,0.0839306]
[1764092072172,0.10681,87920.0,87919.0,0.0839306]
[1764092072367,0.10681,87920.0,87919.0,0.0414406]
[1764092072568,0.04268,87920.0,87919.0,0.0953111]
[1764092072871,0.02414,87960.0,87919.0,0.0953111]
[1764092072872,0.08267,87945.0,87944.0,0.08376]
[1764092073070,0.04268,87948.0,87947.0,0.08376]
[1764092073268,0.08267,87942.0,87941.0,0.44456]
[1764092073469,0.04268,87942.0,87941.0,0.44456]
[1764092073667,0.3608,87977.0,87959.0,0.08376]
[1764092073970,0.08267,87962.0,87961.0,0.04127]
[1764092074172,0.04268,87970.0,87969.0,0.08376]
[1764092074375,0.08267,87970.0,87969.0,0.08376]
[1764092074573,0.3608,87977.0,87976.0,0.08376]
[1764092074877,0.3608,87999.0,87993.0,0.08376]
[1764092075071,0.3608,87999.0,87993.0,0.26392]
[1764092075379,0.0113691,88008.0,87993.0,0.62476]
[1764092075567,0.02414,88011.0,87993.0,0.62476]
[1764092076169,0.16073015,88020.0,88019.0,0.07248]
[1764092076365,0.16073015,88020.0,88019.0,0.39704]
[1764092076366,0.08267,88020.0,88019.0,0.39704]
[1764092076661,0.08267,88020.0,88019.0,0.43328]
[1764092076875,0.08267,88020.0,88019.0,0.39704]
[1764092077077,0.08267,88020.0,88019.0,0.43328]
[1764092077271,0.0113665,88028.0,88022.0,0.07248]
[1764092077476,0.0940365,88028.0,88027.0,0.3608]
[1764092077876,0.08267,88020.0,88019.0,0.002]
[1764092078281,0.0940375,88020.0,88019.0,0.002]
[1764092078471,0.08267,88020.0,88019.0,0.002]
[1764092078671,0.06682,88023.0,88022.0,0.07248]
[1764092078872,0.10681,88023.0,88022.0,0.03624]
[1764092079068,0.04268,88020.0,88019.0,0.3618]
[1764092079280,0.04268,88020.0,88019.0,0.39704]
[1764092079582,0.04268,88020.0,88019.0,0.43328]
[1764092080082,0.08267,88020.0,88019.0,0.3608]
[1764092080485,0.08267,88020.0,88019.0,0.3618]
[1764092080782,0.08267,88020.0,88019.0,0.3628]
[1764092081886,0.0501259,88032.0,88031.0,0.03779]
[1764092082074,0.0501259,88032.0,88019.0,0.3628]
[1764092082075,0.0896264,88028.0,88027.0,0.3608]
[1764092082276,0.02324,88032.0,88019.0,0.3628]
[1764092082277,0.1128675,88020.0,88019.0,0.3628]
[1764092082476,0.0113675,88020.0,88019.0,0.4408]
[1764092082786,0.03876,88024.0,88023.0,0.078]
[1764092083382,0.07826,88024.0,88023.0,0.078]
[1764092083585,0.02324,88032.0,88031.0,0.078]
[1764092084074,0.1015,88032.0,88031.0,0.078]
[1764092084280,0.07826,88028.0,88027.0,0.3608]
[1764092084885,0.07826,88024.0,88023.0,0.001]
[1764092085180,0.0113661,88031.0,88030.0,0.03779]
[1764092085387,0.0896261,88031.0,88030.0,0.078]
[1764092086587,0.0896261,88031.0,88030.0,0.03779]
[1764092087184,0.0501275,88020.0,88019.0,0.39859]
[1764092087489,0.1128675,88020.0,88019.0,0.39859]
[1764092088389,0.0501275,88020.0,88019.0,0.4388]
[1764092088689,0.1128675,88020.0,88019.0,0.4388]
[1764092089283,0.1138675,88020.0,88019.0,0.4388]
[1764092089876,0.1158675,88020.0,88019.0,0.4388]
[1764092090090,0.04176,88020.0,88019.0,0.4388]
[1764092090291,0.003,88020.0,88019.0,0.4388]
[1764092091089,0.04176,88020.0,88019.0,0.4388]
[1764092091390,0.08126,88020.0,88019.0,0.3608]
[1764092091586,0.08126,88020.0,88019.0,0.4388]
[1764092091990,0.08126,88020.0,88019.0,0.3608]
[1764092092290,0.08126,88020.0,88011.0,0.0001705]
[1764092092291,0.07826,88012.0,88011.0,0.0001705]
[1764092092491,0.0896285,88012.0,88011.0,0.0001705]
[1764092093691,0.0896285,88012.0,87983.0,0.17404]
[1764092093692,0.07826,88007.0,87988.0,0.3608]
[1764092093889,0.1128715,87989.0,87988.0,0.3608]
[1764092096193,0.09921423,87989.0,87988.0,0.3608]
[1764092096393,0.11058573,87989.0,87988.0,0.3608]
[1764092097598,0.11058573,87989.0,87988.0,0.39859]
[1764092098092,0.0896311,87993.0,87992.0,0.078]
[1764092098293,0.0113708,87995.0,87994.0,0.078]
[1764092098483,0.0501308,87995.0,87994.0,0.078]
[1764092098991,0.1128715,87989.0,87988.0,0.4388]
[1764092099192,0.0113711,87992.0,87991.0,0.08755]
[1764092099392,0.00016845,87997.0,87996.0,0.08755]
[1764092099594,0.00016845,87997.0,87996.0,0.44835]
[1764092100187,0.0113688,88010.0,88006.0,0.08755]
[1764092100501,0.1023388,88010.0,88009.0,0.44835]
[1764092100891,0.0113705,87997.0,87996.0,0.44835]
[1764092101092,0.1023405,87997.0,87996.0,0.3608]
[1764092101297,0.1023405,87997.0,87996.0,0.44835]
[1764092101487,0.1033388,88010.0,88009.0,0.08755]
[1764092101693,0.1023392,88007.0,88006.0,0.3608]
[1764092102096,0.0113703,87998.0,87997.0,0.44835]
[1764092102500,0.1023403,87998.0,87997.0,0.40611]
[1764092102994,0.1023403,87998.0,87988.0,0.36097039]
[1764092102995,0.1298215,87989.0,87988.0,0.36097039]
[1764092103195,0.1298215,87989.0,87988.0,0.00017039]
[1764092103605,0.1298215,87989.0,87988.0,9e-08]
[1764092103994,0.001,87998.0,87997.0,0.08755]
[1764092104189,0.001,87998.0,87997.0,0.44835]
[1764092105791,0.0019,88001.0,88000.0,0.08755]
[1764092106011,0.4219,88001.0,88000.0,0.08755]
[1764092106195,0.40824671,88001.0,88000.0,0.08755]
[1764092106704,0.38094012,88001.0,88000.0,0.08755]
[1764092107095,0.38194012,88001.0,88000.0,0.08755]
[1764092107993,0.09097,87998.0,87997.0,0.3608]
[1764092108191,0.54097,87998.0,87997.0,0.3608]
[1764092109104,0.54097,87998.0,87988.0,0.36080009]
[1764092109105,0.54197,87998.0,87988.0,0.36080009]
[1764092109402,0.3721715,87989.0,87988.0,9e-08]
[1764092109599,0.8021715,87989.0,87988.0,9e-08]
[1764092109800,0.0113745,87966.0,87965.0,0.3608]
[1764092110002,0.09097,87944.0,87943.0,0.3608]
[1764092110203,0.50097,87944.0,87943.0,0.3608]
[1764092110504,0.5123473,87944.0,87943.0,0.3608]
[1764092110894,0.1023481,87938.0,87937.0,0.00012561]
[1764092111094,0.5123481,87938.0,87937.0,0.00012561]
[1764092111895,0.08878,87923.0,87922.0,0.3608]
[1764092112097,0.53878,87923.0,87922.0,0.3608]
[1764092112895,0.53886299,87923.0,87922.0,0.3608]
[1764092113520,0.1001611,87915.0,87914.0,0.00017059]
[1764092113698,0.4901611,87915.0,87914.0,0.00017059]
[1764092113894,0.49025906,87915.0,87914.0,0.00017059]
[1764092114102,0.49025906,87915.0,87905.0,0.3608]
[1764092114103,0.1271522,87906.0,87905.0,0.3608]
[1764092114399,0.53727781,87906.0,87905.0,0.3608]
[1764092114908,0.52589561,87906.0,87905.0,0.3608]
[1764092115414,0.52589561,87906.0,87897.0,0.00017059]
[1764092115593,0.08878,87898.0,87897.0,0.00017059]
[1764092115905,0.47888517,87898.0,87897.0,0.00017059]
[1764092116093,0.46521499,87898.0,87897.0,0.00017059]
[1764092118802,0.46521499,87898.0,87897.0,0.04663059]
[1764092119494,0.46521499,87898.0,87897.0,0.00017059]
[1764092121604,0.1001634,87897.0,87896.0,0.29160059]
[1764092121804,0.5201634,87897.0,87896.0,0.29160059]
[1764092122106,0.46572,87897.0,87896.0,0.38187059]
[1764092122313,0.42,87897.0,87896.0,0.38187059]
[1764092122505,0.50878,87897.0,87896.0,0.33806059]
[1764092122710,0.50878,87897.0,87896.0,0.29160059]
[1764092123799,0.50878,87897.0,87896.0,0.30298409]
[1764092124001,0.50878,87897.0,87896.0,0.34944409]
[1764092124303,0.50878,87897.0,87896.0,0.39325409]
[1764092124503,0.50878,87897.0,87896.0,0.38187059]
[1764092124704,0.42,87897.0,87896.0,0.38187059]
[1764092126104,0.40633072,87897.0,87896.0,0.39325409]
[1764092126499,0.45205072,87897.0,87896.0,0.38187059]
[1764092126911,0.44243412,87897.0,87896.0,0.39325409]
[1764092127103,0.38533072,87897.0,87896.0,0.39325409]
[1764092132914,0.38533072,87897.0,87896.0,0.38187059]
[1764092133117,0.38533072,87897.0,87896.0,0.39325409]
[1764092133317,0.47411072,87897.0,87896.0,0.30298409]
[1764092133518,0.48549412,87897.0,87896.0,0.29160059]
[1764092133710,0.0113835,87896.0,87888.0,0.04663059]
[1764092133911,0.1001644,87889.0,87888.0,0.00017059]
[1764092134115,0.5201644,87889.0,87888.0,0.36097059]
[1764092134310,0.52029001,87889.0,87888.0,0.36097059]
[1764092134613,0.50890561,87889.0,87888.0,0.36097059]
[1764092134817,0.50890561,87889.0,87888.0,0.46262519]
[1764092135113,0.50890561,87889.0,87888.0,0.45124059]
[1764092135503,0.50890561,87889.0,87888.0,0.36097059]
[1764092136217,0.49523465,87889.0,87888.0,0.36097059]
[1764092138107,0.49523465,87889.0,87888.0,0.45124059]
[1764092138410,0.50661905,87889.0,87888.0,0.36097059]
[1764092139219,0.47927624,87889.0,87888.0,0.36097059]
[1764092139915,0.46789184,87889.0,87888.0,0.45124059]
[1764092142321,0.42012561,87889.0,87888.0,0.45124059]
[1764092142715,0.27866561,87889.0,87888.0,0.45124059]
[1764092142912,0.27866561,87889.0,87888.0,0.51220641]
[1764092143215,0.27866561,87889.0,87888.0,0.46262519]
[1764092143420,0.27866561,87889.0,87888.0,0.45124059]
[1764092143612,0.36752561,87889.0,87888.0,0.46262519]
[1764092143816,0.27866561,87889.0,87888.0,0.46262519]
[1764092144120,0.36752561,87889.0,87888.0,0.46362519]
[1764092144314,0.27866561,87889.0,87888.0,0.46362519]
[1764092145726,0.27866561,87889.0,87888.0,0.49379337]
[1764092146020,0.00017059,87910.0,87888.0,0.49379337]
[1764092146021,0.08903059,87910.0,87909.0,0.0885618]
[1764092146221,0.46903059,87910.0,87909.0,0.4493618]
[1764092146712,0.38017059,87910.0,87909.0,0.4493618]
[1764092147112,0.38117059,87910.0,87909.0,0.4493618]
[1764092147824,0.42475059,87910.0,87909.0,0.4493618]
[1764092148418,0.38117059,87910.0,87909.0,0.4493618]
[1764092149711,0.20795,87945.0,87919.0,0.07718]
[1764092149916,0.3781872,87945.0,87944.0,0.3608]
[1764092150112,0.6781872,87945.0,87944.0,0.3608]
[1764092150310,1.1781872,87945.0,87944.0,0.3608]
[1764092150512,0.98625,87945.0,87944.0,0.4618173]
[1764092150719,0.95886,87945.0,87944.0,0.40479]
[1764092150917,0.95886,87945.0,87944.0,0.3608]
[1764092152027,0.45986,87945.0,87944.0,0.3608]
[1764092152523,0.46086,87945.0,87944.0,0.3608]
[1764092153320,0.46086,87945.0,87944.0,0.40479]
[1764092155424,0.46086,87945.0,87944.0,0.45044]
[1764092156934,0.372,87945.0,87944.0,0.45044]
[1764092157631,0.00017059,87953.0,87952.0,0.08964]
[1764092157835,0.00017059,87953.0,87952.0,0.4618163]
[1764092158036,0.40017059,87953.0,87952.0,0.4618163]
[1764092158633,9e-08,87953.0,87952.0,0.4618163]
[1764092159029,0.13925,87974.0,87973.0,0.0113735]
[1764092159229,0.5806234,87974.0,87973.0,0.7216]
[1764092159426,0.5806234,87974.0,87973.0,0.3608]
[1764092159933,0.56925,87974.0,87973.0,0.5550036]
[1764092160335,0.47358,87974.0,87973.0,0.5550036]
[1764092160537,0.28434,87974.0,87973.0,0.5550036]
[1764092160738,5.9e-07,87982.0,87981.0,0.0113725]
[1764092160939,0.21653,88000.0,87999.0,0.0113702]
[1764092161236,0.60653,88000.0,87999.0,0.7329702]
[1764092161638,0.60653,88000.0,87999.0,0.7216]
[1764092163440,0.6179001,88000.0,87999.0,0.7216]
[1764092163631,0.39,88000.0,87999.0,0.7329702]
[1764092164028,0.39,88000.0,87999.0,0.0113702]
[1764092164434,0.39,88000.0,87999.0,0.7329702]
[1764092164834,0.09868,88000.0,87999.0,0.7329702]
[1764092165031,0.15136,88000.0,87999.0,0.7329702]
[1764092165239,0.43,88000.0,87999.0,0.9134502]
[1764092165539,0.48268,88000.0,87999.0,0.9134502]
[1764092166053,0.43,88000.0,87999.0,0.9134502]
[1764092166447,0.57615,88000.0,87999.0,0.9134102]
[1764092166639,0.43,88000.0,87999.0,0.9134102]
[1764092167151,0.48268,88000.0,87999.0,0.9134102]
[1764092167846,0.43,88000.0,87999.0,0.9133702]
[1764092168050,0.48268,88000.0,87999.0,0.9133702]
[1764092168647,0.43,88000.0,87999.0,0.9133702]
[1764092169851,0.67182,88000.0,87999.0,0.7329702]
[1764092170151,0.67182,88000.0,87999.0,0.9133302]
[1764092170347,0.67182,88000.0,87999.0,0.90196]
[1764092170838,0.67182,88000.0,87999.0,0.7216]
[1764092171042,0.67182,88000.0,87999.0,0.90196]
[1764092171751,0.67182,88000.0,87999.0,0.7216]
[1764092171944,0.67182,88000.0,87999.0,0.37954]
[1764092172144,0.1940311,87992.0,87991.0,0.36097049]
[1764092172443,0.60266,87992.0,87991.0,0.55438169]
[1764092172638,0.42,87992.0,87991.0,0.54301049]
[1764092173742,0.50947,87992.0,87991.0,0.54301049]
[1764092174148,0.50947,87992.0,87991.0,0.36097049]
[1764092174149,0.60266,87992.0,87991.0,0.36097049]
[1764092176045,0.42,87992.0,87991.0,0.54301049]
[1764092176244,0.60266,87992.0,87991.0,0.54301049]
[1764092176949,0.60266,87992.0,87991.0,0.00017049]
[1764092177151,0.60266,87992.0,87991.0,0.01154169]
[1764092177455,0.42,87992.0,87991.0,0.18221049]
[1764092177751,0.18283049,88008.0,88007.0,0.1934092]
[1764092177951,0.63283049,88008.0,88007.0,0.1934092]
[1764092178142,0.63283049,88008.0,88007.0,0.18204]
[1764092178450,0.08947,88003.0,88002.0,0.1043197]
[1764092178645,0.48947,88003.0,88002.0,0.1934097]
[1764092179047,0.48947,88003.0,87997.0,0.3608]
[1764092179048,0.4,88003.0,87998.0,0.0113703]
[1764092179247,0.4,88003.0,88000.0,0.0113701]
[1764092179248,0.18266,88001.0,88000.0,0.0113701]
[1764092179449,0.62266,88001.0,88000.0,0.0113701]
[1764092179955,0.18266,88000.0,87999.0,0.18028]
[1764092180156,0.59266,88000.0,87999.0,0.18028]
[1764092180351,0.18266,87998.0,87997.0,0.3608]
[1764092180552,0.59266,87998.0,87997.0,0.3721705]
[1764092182650,0.6040303,87998.0,87997.0,0.3608]
[1764092182856,0.6040303,87998.0,87991.0,0.00017049]
[1764092182857,0.1940311,87992.0,87991.0,0.00017049]
[1764092183054,0.6040311,87992.0,87991.0,0.00017049]
[1764092184453,0.6050311,87992.0,87991.0,0.00017049]
[1764092184854,0.59366,87992.0,87991.0,0.00017049]
[1764092185352,0.59466,87992.0,87991.0,0.00017049]
[1764092185550,0.59466,87992.0,87969.0,0.3608]
[1764092185551,0.18266,87970.0,87969.0,0.3608]
[1764092185757,0.62266,87970.0,87969.0,0.4806]
[1764092185954,0.62266,87970.0,87969.0,0.66264]
[1764092186260,0.62266,87970.0,87969.0,0.3608]
[1764092187158,0.194035,87962.0,87961.0,0.00017049]
[1764092187358,0.604035,87962.0,87961.0,0.00017049]
[1764092187755,0.59266,87962.0,87961.0,0.00017049]
[1764092190350,0.59266,87962.0,87961.0,0.09312049]
[1764092190554,0.604035,87962.0,87961.0,0.54301049]
[1764092190962,0.604035,87962.0,87961.0,0.53401049]
[1764092191158,0.59266,87962.0,87961.0,0.53401049]
[1764092191364,0.41,87962.0,87961.0,0.53401049]
[1764092191559,0.21331312,87962.0,87961.0,0.53401049]
[1764092191761,0.01691312,87962.0,87961.0,0.53401049]
[1764092192060,0.18283049,87978.0,87977.0,0.193413]
[1764092192263,0.56283049,87978.0,87977.0,0.011373]
[1764092192451,0.56283049,87978.0,87977.0,0.104323]
[1764092193065,0.38017049,87978.0,87977.0,0.193413]
[1764092193563,0.38017049,87978.0,87977.0,0.194413]
[1764092194351,0.38017049,87978.0,87977.0,0.193413]
[1764092195159,0.35286134,87978.0,87977.0,0.193413]
[1764092195360,4e-08,87978.0,87977.0,0.593413]
[1764092195560,0.0113704,87998.0,87995.0,0.0113707]
[1764092195860,0.59266,87998.0,87997.0,0.3608]
[1764092196068,0.59266,87998.0,87997.0,0.54284]
[1764092196662,0.59266,87998.0,87997.0,0.45375]
[1764092196870,0.1571714,87990.0,87989.0,0.18221049]
[1764092197068,0.5971714,87990.0,87989.0,0.36241049]
[1764092197258,0.6903614,87990.0,87989.0,0.36237049]
[1764092197468,0.18266,87994.0,87993.0,0.1934108]
[1764092197762,0.57266,87994.0,87993.0,0.1934108]
[1764092197956,0.57266,87994.0,87993.0,0.18204]
[1764092198159,0.57266,87994.0,87993.0,0.3622]
[1764092200664,0.47947,87994.0,87993.0,0.3622]
[1764092201874,0.39,87994.0,87993.0,0.3622]
[1764092203164,0.00017049,88006.0,88005.0,0.2585694]
[1764092203468,0.09181888,88017.0,88016.0,0.258568]
[1764092203673,0.48181888,88017.0,88016.0,0.799488]
[1764092203865,0.39,88017.0,88016.0,0.799488]
[1764092205469,0.391,88017.0,88016.0,0.799488]
[1764092205867,0.39,88017.0,88016.0,0.799488]
[1764092206473,0.00017049,88025.0,88024.0,0.258567]
[1764092206767,0.06017049,88025.0,88024.0,0.619367]
[1764092206976,0.42017049,88025.0,88024.0,0.619367]
[1764092207571,0.42117049,88025.0,88024.0,0.619367]
[1764092208870,0.42217049,88025.0,88024.0,0.619367]
[1764092210174,0.54650049,88025.0,88024.0,0.799407]
[1764092210573,0.54650049,88025.0,88024.0,0.799367]
[1764092211282,0.42217049,88025.0,88024.0,0.799367]
[1764092214483,0.67675049,88025.0,88024.0,0.799327]
[1764092214672,0.42217049,88025.0,88024.0,0.799327]
[1764092214867,0.42017049,88025.0,88024.0,0.799327]
[1764092215573,0.67475049,88025.0,88024.0,0.619367]
[1764092215878,0.67475049,88025.0,88024.0,0.54076]
[1764092216467,0.67475049,88025.0,88024.0,0.3608]
[1764092216671,0.67475049,88025.0,88024.0,0.54072]
[1764092217180,0.67475049,88025.0,88024.0,0.3608]
[1764092219975,0.67475049,88025.0,88024.0,0.77875]
[1764092220380,0.42017049,88025.0,88024.0,0.77875]
[1764092220880,9e-08,88025.0,88024.0,0.77875]
[1764092221186,0.07241,88040.0,88024.0,0.77875]
[1764092221187,0.40745394,88046.0,88045.0,0.2147143]
[1764092221384,0.40745394,88046.0,88045.0,0.5755143]
[1764092221385,0.83745394,88046.0,88045.0,0.5755143]
[1764092221584,0.83745394,88046.0,88045.0,0.3721643]
[1764092221774,0.83745394,88046.0,88045.0,0.3608]
[1764092222174,0.83845394,88046.0,88045.0,0.77875]
[1764092222580,0.83945394,88046.0,88045.0,0.77875]
[1764092222776,0.83945394,88046.0,88045.0,0.3608]
[1764092223183,0.83945394,88046.0,88045.0,0.5408]